Cogmind - Beta 14 @@@ ROGUE MODE // 2024.09.24 @ 18:33:11 Player: siona Result: Destroyed by DAS Turret with DAS Cannon Performance ------------- Evolutions (0) 0 Regions Visited (3) 600 Robots Destroyed (5) 25 Value Destroyed (94) 94 Prototype IDs (23) 460 Alien Tech Used (0) 0 Bonus (129) 129 TOTAL SCORE: 1308 Bonus ------- Aligned with FarCom 300 Friendly Fire -171 Cogmind --------- Core Integrity 0/250 Matter 259/300 Energy 84/100 System Corruption 1% Temperature Cool (0) Movement Core (50) Location -10/Exiles Parts ------- > --- POWER (1) -------- (None) > --- PROPULSION (2) --- (None) > --- UTILITY (2) ------ Signal Interpreter > --- WEAPON (2) ------- Light Assault Rifle > --- INVENTORY (5) ---- Wheel Improved Terrain Scanner Skeleton Box Peak State ------------ > --- POWER ------------ Ion Engine > --- PROPULSION ------- Light Treads Light Treads > --- UTILITY ---------- Small Storage Unit Signal Interpreter > --- WEAPON ----------- Assault Rifle Grenade Launcher > --- INVENTORY -------- Wheel Improved Terrain Scanner Skeleton Box Light Assault Rifle Light Assault Rifle [Rating: 8] Favorites ----------- Power Ion Engine Engine Ion Engine Propulsion Light Treads Treads Light Treads Utility Small Storage Unit Storage Small Storage Unit Processor Signal Interpreter Weapon Assault Rifle Ballistic Gun Assault Rifle Launcher Grenade Launcher Build | -11 -10 -10 -10 ------- Run | Yrd Mat Min Exi Slots Evolved . | . . . . Power . | . . . . Propulsion . | . . . . Utility . | . . . . Weapon . | . . . . Parts Attached 10 | 6 . 2 2 Power 1 | 1 . . . Engine 1 | 1 . . . Core . | . . . . Reactor . | . . . . Propulsion 2 | 2 . . . Treads 2 | 2 . . . Leg . | . . . . Wheel . | . . . . Hover . | . . . . Flight . | . . . . Utility 2 | 1 . 1 . Device . | . . . . Storage 1 | 1 . . . Processor 1 | . . 1 . Hackware . | . . . . Protection . | . . . . Artifact . | . . . . Weapon 5 | 2 . 1 2 Energy Gun . | . . . . Energy Cannon . | . . . . Ballistic Gun 4 | 2 . . 2 Ballistic Cannon . | . . . . Launcher 1 | . . 1 . Special Weapon . | . . . . Impact Weapon . | . . . . Slashing Weapon . | . . . . Piercing Weapon . | . . . . Special Melee Weapon . | . . . . Unidentified Prototypes . | . . . . Parts Lost 7 | . . . 7 Power 1 | . . . 1 Propulsion 2 | . . . 2 Utility 1 | . . . 1 Weapon 3 | . . . 3 Highest Loss Streak 7 | . . . 7 To Critical Strikes . | . . . . Average Slot Usage (%) 97 | . 85 98 99 Engine 13 | . 14 14 13 Treads 27 | . 28 28 27 Storage 14 | . 14 14 14 Processor 12 | . . 12 14 Ballistic Gun 20 | . 28 22 14 Launcher 7 | . . 5 13 Peak Build Rating 8 | 6 6 7 8 Average Rating 6 | 4 6 6 7 On Entrance 4 | . 6 6 7 Naked Turns . | . . . . Heaviest Build 15 | 13 13 15 15 Greatest Support 40 | 40 40 40 40 Greatest Overweight (x) . | . . . . Average Overweight (x) . | . . . . Largest Inventory Capacity 8 | 8 8 8 8 Average Capacity 7 | 6 8 8 8 Most Carried 5 | 2 4 4 5 Average Carried 3 | . 3 3 4 Final Capacity 8 | 8 8 8 5 Final Carried 4 | 2 4 4 3 Class Distribution -------------------- 100% | Mutant Dominant Class ---------------- Mutant | -10/Materials Mutant | -10/Mines Mutant | -10/Exiles Resources | -11 -10 -10 -10 ----------- Run | Yrd Mat Min Exi Matter Collected 332 | 234 . 98 . Remotely . | . . . . Salvage Created 176 | . . 157 19 Parts 10 | . . 9 1 Haulers Intercepted . | . . . . Recyclers Shooed . | . . . . Parts Field Recycled . | . . . . Retrieved Matter . | . . . . Parts Self-Destructed . | . . . . Prevented . | . . . . Kills | -11 -10 -10 -10 ------- Run | Yrd Mat Min Exi Combat Hostiles Destroyed 2 | . . 2 . AOE 2 | . . 2 . Classes Destroyed 4 | . . 3 1 Tunneler 1 | . . 1 . Recycler 1 | . . 1 . Grunt 2 | . . 2 . Zionite 1 | . . . 1 Best Kill Streak 4 | . . 4 . Combat Bots Only 2 | . . 2 . Max Kills in Single Turn 2 | . . 2 1 Gunslinging . | . . . . Exploded 1 | . . 1 . Melee . | . . . . Uniques/NPCs Destroyed . | . . . . Combat | -11 -10 -10 -10 -------- Run | Yrd Mat Min Exi Hostile Shots Fired 49 | . . 5 44 Missed 12 | . . . 12 Damage Taken 1004 | . . 76 928 Core 254 | . . 33 221 Absorbed by Shields . | . . . . Core Remaining (%) 100 | 100 . . . Volleys Fired 15 | . 2 5 8 Largest 2 | . 2 2 2 Hottest 40 | . 40 40 40 Shots Fired 19 | . 4 6 9 Gun 10 | . 4 2 4 Cannon . | . . . . Launcher 9 | . . 4 5 Special . | . . . . Kinetic 10 | . 4 2 4 Thermal . | . . . . Explosive 9 | . . 4 5 Electromagnetic . | . . . . Robot Hit Streak 7 | . 2 7 2 Robot Miss Streak 2 | . . . 2 Penetration Max . | . . . . Secondary Targets . | . . . . Shots Hit Robots 11 | . 2 5 4 Core Hits 13 | . 1 7 5 Critical Kills . | . . . . Critical Parts Destroyed . | . . . . Critical Strikes . | . . . . Melee Attacks . | . . . . Impact . | . . . . Slashing . | . . . . Piercing . | . . . . Sneak Attacks . | . . . . Combat Hostiles . | . . . . Follow-up Attacks . | . . . . Damage Inflicted 484 | . 20 224 240 Guns 50 | . 20 15 15 Cannons . | . . . . Explosions 434 | . . 209 225 Melee . | . . . . Ramming . | . . . . Kinetic 50 | . 20 15 15 Thermal . | . . . . Explosive 434 | . . 209 225 Electromagnetic . | . . . . Impact . | . . . . Slashing . | . . . . Piercing . | . . . . Highest Corruption 1 | . . . 1 Average Corruption 1 | . . . 1 Corruption Purged . | . . . . Corruption Blocked . | . . . . Overload Shots . | . . . . Overflow Damage 8 | . . . 8 Projectiles . | . . . . Explosions 8 | . . . 8 Melee . | . . . . Knockbacks . | . . . . Impact . | . . . . Kinetic . | . . . . Secondary . | . . . . Self-Inflicted Damage 48 | . . . 48 Shots 3 | . . . 3 Rammed . | . . . . Targets Rammed . | . . . . Kicked . | . . . . Crushed . | . . . . Highest Temperature 4 | . . 4 . Average Temperature 4 | . . 4 . Received Heat Transfer 42 | . . 42 . Siege Activations . | . . . . Robots Corrupted . | . . . . Combat Hostiles . | . . . . Parts Fried . | . . . . Impact Corruptions . | . . . . Robots Melted . | . . . . Combat Hostiles . | . . . . Parts Melted . | . . . . Heat Transferred . | . . . . Parts Sabotaged . | . . . . Parts Stolen . | . . . . Parts Stripped . | . . . . Power Chain Reactions . | . . . . Alert | -11 -10 -10 -10 ------- Run | Yrd Mat Min Exi Peak Influence 71 | . . 71 . Initial . | . . . . Average 19 | . . 23 . Maximum Alert Level . | . . . . Low Security (%) 100 | 100 100 100 . Level 1 . | . . . . Level 2 . | . . . . Level 3 . | . . . . Level 4 . | . . . . Level 5 . | . . . . High Security . | . . . . Max Security . | . . . . Squads Dispatched 1 | . 1 . . Investigation . | . . . . Extermination . | . . . . Reinforcement 1 | . 1 . . Assault . | . . . . Garrison . | . . . . Intercept . | . . . . Searches Triggered . | . . . . Construction Impeded . | . . . . Haulers Reinforced . | . . . . Active Scanning Responses . | . . . . Cargo Convoy Interrupts . | . . . . Stealth | -11 -10 -10 -10 --------- Run | Yrd Mat Min Exi Distress Signals . | . . . . Communications Jammed . | . . . . Distress Signals . | . . . . Times Spotted 8 | . . 2 6 Peak Tracking Total 13 | . 1 2 13 Tactical Retreats . | . . . . Traps | -11 -10 -10 -10 ------- Run | Yrd Mat Min Exi Traps Triggered . | . . . . Indirectly . | . . . . Trap Hack Attempts . | . . . . Triggered . | . . . . Disarmed . | . . . . Reprogrammed . | . . . . Reused . | . . . . Traps Extracted . | . . . . Installed . | . . . . Triggered . | . . . . Machines | -11 -10 -10 -10 ---------- Run | Yrd Mat Min Exi Machines Disabled 3 | . . . 3 Max in Single Turn 1 | . . . 1 Machines Repaired . | . . . . Machines Dismantled . | . . . . Machines Sabotaged . | . . . . Overloaded Fab Kills . | . . . . Hacking | -11 -10 -10 -10 --------- Run | Yrd Mat Min Exi Machines Accessed 3 | . . . 3 Terminals . | . . . . Fabricators . | . . . . Repair Stations . | . . . . Recycling Units . | . . . . Scanalyzers . | . . . . Garrison Access . | . . . . Total Hacks 18 | . . . 18 Successful 18 | . . . 18 Failed . | . . . . Catastrophic . | . . . . Database Lockouts . | . . . . Manual 1 | . . . 1 Terminals . | . . . . Fabricators . | . . . . Repair Stations . | . . . . Recycling Units . | . . . . Scanalyzers . | . . . . Garrison Access . | . . . . Terminal Hacks 18 | . . . 18 Record 17 | . . . 17 Derelict Proto ID Bank 1 | . . . 1 Fabricator Hacks . | . . . . Repair Station Hacks . | . . . . Recycling Unit Hacks . | . . . . Scanalyzer . | . . . . Garrison Access Hacks . | . . . . Unauthorized Hacks . | . . . . Terminals . | . . . . Fabricators . | . . . . Repair Stations . | . . . . Recycling Units . | . . . . Scanalyzers . | . . . . Garrison Access . | . . . . Data Cores Recovered . | . . . . Used . | . . . . Hacking Detections . | . . . . Full Trace Events . | . . . . Feedback Events . | . . . . Feedback Blocked . | . . . . Robot Schematics Acquired . | . . . . Robots Built . | . . . . Authchips . | . . . . Time . | . . . . Total Robot Build Rating . | . . . . Part Schematics Acquired . | . . . . Parts Built . | . . . . Authchips . | . . . . Time . | . . . . Total Part Build Rating . | . . . . Parts Repaired . | . . . . Time . | . . . . Parts Recycled . | . . . . Recycled Matter . | . . . . Retrieved Matter . | . . . . Retrieved Components . | . . . . Parts Scanalyzed . | . . . . Part Schematics Acquired . | . . . . Parts Damaged . | . . . . Bothacking | -11 -10 -10 -10 ------------ Run | Yrd Mat Min Exi Used RIF Installer . | . . . . Robots Hacked . | . . . . Non-combat . | . . . . Combat . | . . . . Robot Hacks Applied . | . . . . Relay Couplers Released . | . . . . Fabnet Peak Effective % . | . . . . Robots Rewired . | . . . . Allies Hacked . | . . . . Hacks Repelled . | . . . . Allies | -11 -10 -10 -10 -------- Run | Yrd Mat Min Exi Total Allies 3 | . . 3 . Largest Group 3 | . . 3 . Highest-Rated Group 40 | . . 40 . Highest-Rated Ally 16 | . . 16 . Total Orders 3 | . . 3 . ROAM 3 | . . 3 . Ally Attacks 11 | . . 11 . Total Damage 102 | . . 102 . Kills . | . . . . Allies Corrupted . | . . . . Allies Melted . | . . . . Intel | -11 -10 -10 -10 ------- Run | Yrd Mat Min Exi Robot Analysis Total . | . . . . Derelict Logs Recovered 1 | . . 1 . Drone Launches . | . . . . Drone Recoveries . | . . . . Exploration | -11 -10 -10 -10 ------------- Run | Yrd Mat Min Exi Turns Passed 1458 | 113 83 868 394 Spaces Moved 789 | 67 48 439 235 Core 4 | 4 . . . Treads 785 | 63 48 439 235 Legs . | . . . . Wheels . | . . . . Hover . | . . . . Flight . | . . . . Fastest Speed 50 | 50 160 160 160 Average Speed 159 | 153 160 160 160 Slowest Speed 160 | 160 160 160 160 Overloaded Moves . | . . . . Propulsion Burnouts . | . . . . Robots Hopped . | . . . . Cave-ins Triggered . | . . . . Exploration Rate (%) 38 | 5 12 78 57 Regions Visited 3 Branch Regions 2 Pre-discovered Areas 1 | . . 1 . Known Exits Taken 1 | . . 1 . Unknown Exits Taken 2 | 1 1 . . Scrap Searched 1 | . . 1 . Spaces Dug . | . . . . Terrain Destroyed 18 | . . 17 1 Melee . | . . . . Projectile . | . . . . AOE 18 | . . 17 1 Terrain Rammed . | . . . . Walls Destroyed . | . . . . Machines Disabled . | . . . . Actions | -11 -10 -10 -10 --------- Run | Yrd Mat Min Exi Total 969 | 74 51 598 246 Wait 152 | . . 152 . Move 786 | 66 47 438 235 Hop . | . . . . Pick Up 6 | 2 2 1 1 Fast Attach 6 | 6 . . . Attach 3 | . . 1 2 Detach . | . . . . Swap 1 | . . 1 . Drop . | . . . . Fire 15 | . 2 5 8 Melee . | . . . . Ram . | . . . . Kick . | . . . . Crush . | . . . . Escape Stasis . | . . . . Rewire . | . . . . Trap . | . . . . Miscellaneous . | . . . . Route ------- -11/Scrapyard -10/Materials -10/Mines (discovered 4 exits: *Mat x2 / *Exi / *Sub) -10/Exiles History --------- Turn | Location | Event 3 | -11/Scrapyard | Discovered new exit (range 15) 114 | -11/Scrapyard | Entered Materials 175 | -10/Materials | Discovered new exit (range 15) 197 | -10/Materials | Entered Mines 207 | -10/Mines | Met a Derelict bent on vengeance 207 | -10/Mines | Assisted by bots powering up and referring to "LRC-V3" 273 | -10/Mines | Discovered new exit (range 5) 278 | -10/Mines | Identified exit to Materials 301 | -10/Mines | Found a hidden stash of uninstalled traps 317 | -10/Mines | Build established: Mutant 515 | -10/Mines | Discovered new exit (range 3) 517 | -10/Mines | Identified exit to Subcaves 643 | -10/Mines | Assembled infested the area 793 | -10/Mines | Discovered exit to Materials (range 5) 1058 | -10/Mines | Discovered new exit (range 5) 1063 | -10/Mines | Identified exit to Exiles 1065 | -10/Mines | Entered Exiles 1107 | -10/Exiles | Met 8R-AWN 1134 | -10/Exiles | Met EX-HEX 1184 | -10/Exiles | Met EX-BIN 1208 | -10/Exiles | Aligned with FarCom system 1209 | -10/Exiles | Given EX-Vault access code 1246 | -10/Exiles | Opened EX-Vault 1331 | -10/Exiles | Found Skeleton Box 1361 | -10/Exiles | Warned to stay clear of 0b10 Research branches 1407 | -10/Exiles | Met EX-DEC 1440 | -10/Exiles | Attacked by the Exiles 1456 | -10/Exiles | Core integrity fell below 50% 1458 | -10/Exiles | Core integrity fell below 20% 1459 | -10/Exiles | Destroyed by DAS Turret with DAS Cannon Last Messages --------------- 01415_ Connecting with EX-Message Board... 01439_ Machine disabled. 01439_ 5H-Q1I(z) destroyed. [Achievement: Backstab] 01440_ EXILES: Hostile robot within lab perimeter. Defensive protocols time, folks! 01441_ Machine disabled. 01442_ EX-DEC: "Let's see what this bad boy can do..." 01442_ EX-DEC deploys DAS Turret. 01443_ Destroyed EX Chip 2. 01444_ Lgt. Treads destroyed. 01445_ Machine disabled. 01447_ Grenade Launcher destroyed. 01448_ Ion Engine destroyed. 01451_ Assault Rifle destroyed. 01452_ EX-BIN: "I just want to science!" 01455_ Lgt. Assault Rifle destroyed. 01457_ Lgt. Treads destroyed. 01459_ Sml. Storage Unit destroyed. Map ----- +----------------------------------------------------+ | ??????????????????????????" """#???????## | | ??????????????????????????" #????????# | | ?????????????????????????"" #????????#" " | | ?????????????????????????"" "#????????#" " | | ????????????????????????? ""?????????#" """ | | ??????????????????????????" "?????????##" #### | | ???????????? ????????????# #????????##"" #??? | | ???????????? #####????### ###?######"" #??? | | ??????????? """#####X# #"###""""""" ##?? | | ??????????? """""" " "" ##? | | ??????????# "" """ " ## | | ???????????# " " | | ????????????## | | ?????????????### | | ???????????????## | | ????????????????## | | ?????????????????##" | | ??????????????????#""" """""" | | ?????????????????##" ######""" | | ?????????????????#"" ""##????#####""" | | ????????????????##""" """##?????????##"" | | ????????????????#" """##???????????#"" | | ????????????????# % % ""#????????????#"" | | ????????????????#" * % ###????????????"" | | ????????????????#"" a #???????????? | | ????????????????#" @ a ??????? | | ????????????????## a ??????? | | ????????????????# t c a a??????? | | ????????????????### ????????? | | ??????????????????#" "????????? | | ??????????????????# "??????????? | | ??????????????????#"" ""#??????????? | | ??????????????????#" """"????????????? | | ??????????????????#""" c """????????????? | | ??????????????????## ""?????????????? | | ???????????????????#" """#?????????????? | | ????????????????????# " #??????????????? | | ????????????????????##"""" #???????????????? | | ?????????????????????### ????????????????? | | ??????????????????????????## ???????????????????? | | ?????????????????????????????????????????????????? | | ?????????????????????????????????????????????????? | | ?????????????????????????????????????????????????? | | ?????????????????????????????????????????????????? | | ?????????????????????????????????????????????????? | | ?????????????????????????????????????????????????? | | ?????????????????????????????????????????????????? | | ?????????????????????????????????????????????????? | | ?????????????????????????????????????????????????? | | ?????????????????????????????????????????????????? | +----------------------------------------------------+ Best States ------------- Heat Dissipation 25 Energy Generation 10 Energy Capacity 250 Matter Stores 300 Matter Capacity 300 Sight Range 16 Terrain Scan Density 10 Evasion (%) 40 Recoil Reduction 2 Item Schematics ----------------- None Robot Schematics ------------------ None Fabricated ------------ Nothing Alien Tech Used ----------------- None Achievements -------------- Backstab Challenges ------------ None Game ------ Seed FlyingCannonNeutralizer Manual? 0 Play Time 00:13:30 Cumulative 14.1 hours Start 2024.09.24 @ 18:18:25 End 2024.09.24 @ 18:33:11 Sessions 1 Manual Loads 0 Difficulty Rogue Special Mode None Game No. 29 Rogue 28 Adventurer 1 Explorer 0 Win Type - Total 0 Types 0/0/0/0/0/0/0/0/0 Lore% 11 Gallery% 16 Achievement% 17 Wizard Run 0 Options --------- Layout 1 ASCII 0 Keyboard 0 Movement Mouse Keybinds 0 Fullscreen 1 Font 32/SmallcapsGlow Map View 50x35 Zoom Use 0% Tactical HUD 1 Map Filters NONE Filters NONE Steam 1 RUN: c04499e4-fac8-4b01-b762-624dcbca0ee6